fUST/lending_fUST_20250802
["ID","MTS","AMOUNT","RATE_DAILY","PERIOD"]
[376740661,1754095842774,-460.0,0.00020878,2]
[376740663,1754095842783,-460.0,0.00020878,2]
[376740665,1754095842792,-183.63,0.00020878,2]
[376740667,1754095842802,-460.0,0.00020878,2]
[376740669,1754095842814,-460.0,0.00020878,2]
[376740672,1754095842824,-460.0,0.00020878,2]
[376740674,1754095842834,-460.0,0.00020878,2]
[376740675,1754095842843,-460.0,0.00020878,2]
[376740677,1754095842852,-460.0,0.00020879,2]
[376740679,1754095842862,-581.88,0.00020879,2]
[376740681,1754095842871,-462.66,0.00020879,2]
[376740683,1754095842881,-460.0,0.00020879,2]
[376740685,1754095842890,-460.0,0.00020879,2]
[376740687,1754095842900,-625.0,0.0002088,2]
[376740690,1754095842909,-784.46,0.0002088,2]
[376740691,1754095842918,-460.0,0.0002088,2]
[376740693,1754095842928,-486.63,0.0002088,2]
[376740695,1754095842937,-160.0,0.00020895,2]
[376740697,1754095842946,-160.0,0.00020895,2]
[376740699,1754095842955,-215.03686253,0.00020895,2]
[376740701,1754095842964,-160.0,0.00020895,2]
[376740703,1754095842973,-160.0,0.00020895,2]
[376740705,1754095842982,-312.16666667,0.00020895,2]
[376740707,1754095842991,-460.76838597,0.00020895,2]
[376740709,1754095843000,-160.0,0.00020895,2]
[376740711,1754095843009,-841.53699354,0.00020895,2]
[376740713,1754095843019,-160.0,0.00020895,2]
[376740715,1754095843028,-160.0,0.00020895,2]
[376740717,1754095843037,-160.0,0.00020895,2]
[376740719,1754095843046,-231.52694941,0.00020895,2]
[376740720,1754095843055,-160.0,0.00020895,2]
[376740721,1754095843066,-216.22890603,0.00020895,2]
[376740722,1754095843075,-12644.26590849,0.00020895,2]
[376740723,1754095843084,-160.0,0.00020919,2]
[376740724,1754095843093,-420.0,0.00020959,2]
[376740725,1754095843103,-163.0,0.00020986,3]
[376740727,1754095843112,-1273.87587132,0.00021003,4]
[376740728,1754095843122,-500.0,0.00021151,2]
[376740729,1754095843131,-2517.13,0.00021151,2]
[376740730,1754095843140,-600.81,0.00021151,2]
[376740731,1754095843149,-460.0,0.00021151,2]
[376740733,1754095843158,-710.96,0.00021151,2]
[376740735,1754095843168,-361.62,0.00021151,2]
[376740737,1754095843176,-460.0,0.00021151,2]
[376740739,1754095843185,-460.0,0.00021151,2]
[376740741,1754095843194,-460.0,0.00021151,2]
[376740743,1754095843204,-1023.05,0.00021151,2]
[376740745,1754095843213,-460.0,0.00021151,2]
[376740747,1754095843222,-460.0,0.00021151,2]
[376740749,1754095843231,-460.0,0.00021152,2]
[376740751,1754095843240,-628.37,0.00021152,2]
[376740753,1754095843249,-460.0,0.00021152,2]
[376740755,1754095843258,-460.0,0.00021152,2]
[376740757,1754095843267,-752.34,0.00021152,2]
[376740759,1754095843276,-632.24,0.00021152,2]
[376740761,1754095843285,-1619.55,0.00021152,2]
[376740763,1754095843294,-460.0,0.00021152,2]
[376740765,1754095843303,-460.0,0.00021152,2]
[376740767,1754095843313,-460.0,0.00021152,2]
[376740769,1754095843322,-460.0,0.00021152,2]
[376740771,1754095843331,-460.0,0.00021152,2]
[376740773,1754095843340,-460.0,0.00021152,2]
[376740790,1754095843349,-423.22,0.00021152,2]
[376740794,1754095843513,-460.0,0.00021153,2]
[376740796,1754095843522,-581.88,0.00021153,2]
[376740798,1754095843532,-462.66,0.00021153,2]
[376740800,1754095843541,-460.0,0.00021153,2]
[376740802,1754095843550,-460.0,0.00021153,2]
[376740804,1754095843560,-625.0,0.00021154,2]
[376740806,1754095843570,-784.46,0.00021154,2]
[376740808,1754095843579,-460.0,0.00021154,2]
[376740810,1754095843588,-486.63,0.00021154,2]
[376740812,1754095843597,-1273.87587132,0.00021279,5]
[376740814,1754095843606,-326.30239161,0.00021312,2]
[376740816,1754095843615,-151.0,0.00021368,2]
[376740818,1754095843624,-151.0,0.00021368,2]
[376740820,1754095843633,-151.0,0.00021368,2]
[376740822,1754095843642,-151.0,0.00021368,2]
[376740824,1754095843651,-151.0,0.00021368,2]
[376740827,1754095843661,-151.0,0.00021368,2]
[376740829,1754095843670,-151.0,0.00021368,2]
[376740831,1754095843679,-151.0,0.00021368,2]
[376740833,1754095843689,-151.0,0.00021368,2]
[376740835,1754095843699,-151.0,0.00021368,2]
[376740836,1754095843708,-2030.296672,0.00021368,2]
[376740838,1754095843717,-151.0,0.00021368,2]
[376740841,1754095843727,-151.0,0.00021368,2]
[376740843,1754095843737,-151.0,0.00021368,2]
[376740845,1754095843750,-151.0,0.00021368,2]
[376740847,1754095843759,-151.0,0.00021368,2]
[376740848,1754095843768,-151.0,0.00021368,2]
[376740851,1754095843779,-151.0,0.00021368,2]
[376740852,1754095843790,-151.0,0.00021368,2]
[376740854,1754095843799,-151.0,0.00021368,2]
[376740856,1754095843808,-151.0,0.00021368,2]
[376740858,1754095843820,-151.0,0.00021368,2]
[376740860,1754095843829,-151.0,0.00021368,2]
[376740862,1754095843839,-500.0,0.00021368,2]
[376740864,1754095843848,-151.0,0.00021368,2]
[376740866,1754095843857,-151.0,0.00021368,2]
[376740868,1754095843866,-500.0,0.00021368,2]
[376740870,1754095843875,-151.0,0.00021368,2]
[376740872,1754095843884,-151.0,0.00021368,2]
[376740874,1754095843894,-500.0,0.00021368,2]
[376740876,1754095843903,-151.0,0.00021368,2]
[376740878,1754095843913,-500.0,0.00021368,2]
[376740880,1754095843922,-151.0,0.00021368,2]
[376740882,1754095843931,-151.0,0.00021368,2]
[376740884,1754095843940,-500.0,0.00021368,2]
[376740886,1754095843950,-151.0,0.00021368,2]
[376740888,1754095843959,-500.0,0.00021368,2]
[376740890,1754095843968,-151.0,0.00021368,2]
[376740892,1754095843977,-500.0,0.00021368,2]
[376740894,1754095843986,-500.0,0.00021368,2]
[376740896,1754095843996,-500.0,0.00021368,2]
[376740898,1754095844005,-151.0,0.00021368,2]
[376740900,1754095844014,-500.0,0.00021368,2]
[376740902,1754095844023,-500.0,0.00021368,2]
[376740904,1754095844033,-151.0,0.00021368,2]
[376740906,1754095844042,-151.0,0.00021368,2]
[376740908,1754095844051,-151.0,0.00021368,2]
[376740910,1754095844065,-151.0,0.00021368,2]
[376740912,1754095844074,-151.0,0.00021368,2]
[376740914,1754095844084,-151.0,0.00021368,2]
[376740916,1754095844093,-151.0,0.00021368,2]
[376740918,1754095844102,-151.0,0.00021368,2]
[376740920,1754095844111,-151.0,0.00021368,2]
[376740922,1754095844121,-151.0,0.00021368,2]
[376740924,1754095844130,-151.0,0.00021368,2]
[376740926,1754095844140,-151.0,0.00021368,2]
[376740928,1754095844149,-151.0,0.00021368,2]
[376740930,1754095844159,-151.0,0.00021368,2]
[376740932,1754095844168,-151.0,0.00021368,2]
[376740934,1754095844178,-151.0,0.00021368,2]
[376740936,1754095844187,-151.0,0.00021368,2]
[376740938,1754095844196,-1000.0,0.00021421,2]
[376740940,1754095844205,-1000.0,0.00021421,2]
[376740941,1754095844214,-500.0,0.00021421,2]
[376740943,1754095844223,-1000.0,0.00021421,2]
[376740945,1754095844232,-1524.87866463,0.00021423,2]
[376740947,1754095844242,-500.0,0.00021425,2]
[376740949,1754095844251,-2517.13,0.00021425,2]
[376740951,1754095844261,-579.90570738,0.00021425,2]
[376740953,1754095844270,-710.96,0.00021425,2]
[376740955,1754095844279,-430.40151387,0.00021425,2]
[376740957,1754095844288,-460.0,0.00021425,2]
[376740959,1754095844297,-460.0,0.00021425,2]
[376740961,1754095844306,-1023.05,0.00021425,2]
[376740963,1754095844316,-460.0,0.00021425,2]
[376740965,1754095844325,-460.0,0.00021425,2]
[376740967,1754095844335,-460.0,0.00021426,2]
[376740969,1754095844344,-628.37,0.00021426,2]
[376740971,1754095844353,-460.0,0.00021426,2]
[376740973,1754095844363,-460.0,0.00021426,2]
[376740975,1754095844372,-752.34,0.00021426,2]
[376740977,1754095844381,-632.24,0.00021426,2]
[376740979,1754095844390,-1619.55,0.00021426,2]
[376740981,1754095844400,-321.87472324,0.00021426,2]
[376740983,1754095844409,-460.0,0.00021426,2]
[376740985,1754095844418,-460.0,0.00021426,2]
[376740988,1754095844431,-460.0,0.00021426,2]
[376740990,1754095844440,-460.0,0.00021426,2]
[376740992,1754095844449,-165.73,0.00021426,2]
[376740993,1754095844459,-460.0,0.00021427,2]
[376740995,1754095844468,-581.88,0.00021427,2]
[376740998,1754095844478,-462.66,0.00021427,2]
[376740999,1754095844487,-460.0,0.00021427,2]
[376741002,1754095844497,-460.0,0.00021427,2]
[376741004,1754095844507,-625.0,0.00021428,2]
[376741006,1754095844517,-784.46,0.00021428,2]
[376741008,1754095844527,-460.0,0.00021428,2]
[376741010,1754095844536,-486.63,0.00021428,2]
[376741012,1754095844546,-3325.02687054,0.00021455,2]
[376741014,1754095844555,-260.0,0.00021466,2]
[376741016,1754095844565,-200.0,0.00021541,15]
[376741018,1754095844574,-200.0,0.00021541,15]
[376741020,1754095844584,-200.0,0.00021541,15]
[376741022,1754095844594,-200.0,0.00021541,15]
[376741024,1754095844604,-320.0,0.00021541,15]
[376741026,1754095844613,-1273.87587132,0.00021555,5]
[376741028,1754095844622,-255.47129339,0.0002157,2]
[376741030,1754095844632,-500.0,0.00021699,2]
[376741032,1754095844641,-700.0,0.00021699,2]
[376741034,1754095844650,-2517.13,0.00021699,2]
[376741036,1754095844659,-710.96,0.00021699,2]
[376741038,1754095844668,-460.0,0.00021699,2]
[376741040,1754095844677,-593.6125048,0.00021699,2]
[376741041,1754095844687,-1023.05,0.00021699,2]
[376741043,1754095844696,-460.0,0.00021699,2]
[376741045,1754095844706,-460.0,0.00021699,2]
[376741047,1754095844715,-460.0,0.000217,2]
[376741049,1754095844725,-628.37,0.000217,2]
[376741051,1754095844741,-213.71153145,0.000217,2]
[376741053,1754095844751,-460.0,0.000217,2]
[376741055,1754095844760,-752.34,0.000217,2]
[376741057,1754095844769,-632.24,0.000217,2]
[376741059,1754095844780,-1619.55,0.000217,2]
[376741061,1754095844790,-460.0,0.000217,2]
[376741063,1754095844800,-460.0,0.000217,2]
[376741065,1754095844809,-460.0,0.000217,2]
[376741067,1754095844820,-460.0,0.000217,2]
[376741069,1754095844830,-460.0,0.00021701,2]
[376741071,1754095844839,-581.88,0.00021701,2]
[376741073,1754095844851,-462.66,0.00021701,2]
[376741075,1754095844860,-460.0,0.00021701,2]
[376741077,1754095844870,-460.0,0.00021701,2]
[376741079,1754095844879,-625.0,0.00021702,2]
[376741081,1754095844888,-784.46,0.00021702,2]
[376741083,1754095844899,-460.0,0.00021702,2]
[376741085,1754095844908,-486.63,0.00021702,2]
[376741087,1754095844917,-867.70903189,0.00021793,2]
[376741089,1754095844927,-1273.87587132,0.00021831,6]
[376741091,1754095844936,-1496.06,0.00021964,3]
[376741093,1754095844945,-1000.0,0.00021968,2]
[376741095,1754095844954,-1018.72061119,0.00021968,2]
[376741097,1754095844963,-500.0,0.00021973,2]
[376741099,1754095844973,-150.0,0.00021973,2]
[376741101,1754095844982,-500.0,0.00021973,2]
[376741103,1754095844991,-500.0,0.00021973,2]
[376741105,1754095845000,-500.0,0.00021973,2]
[376741107,1754095845009,-500.0,0.00021973,2]
[376741109,1754095845018,-501.94752699,0.00021973,2]
[376741111,1754095845027,-500.0,0.00021973,2]
[376741113,1754095845036,-500.0,0.00021973,2]
[376741115,1754095845045,-500.0,0.00021973,2]
[376741117,1754095845054,-500.0,0.00021973,2]
[376741119,1754095845063,-500.0,0.00021973,2]
[376741121,1754095845072,-2517.13,0.00021973,2]
[376741123,1754095845081,-710.96,0.00021973,2]
[376741125,1754095845091,-460.0,0.00021973,2]
[376741127,1754095845100,-1023.05,0.00021973,2]
[376741129,1754095845109,-448.2566001,0.00021973,2]
[376741131,1754095845118,-460.0,0.00021973,2]
[376741133,1754095845127,-460.0,0.00021974,2]
[376741135,1754095845136,-628.37,0.00021974,2]
[376741137,1754095845145,-550.85,0.00021974,2]
[376741139,1754095845157,-752.34,0.00021974,2]
[376741141,1754095845166,-632.24,0.00021974,2]
[376741143,1754095845175,-1619.55,0.00021974,2]
[376741145,1754095845184,-162.09124727,0.00021974,2]
[376741147,1754095845193,-460.0,0.00021974,2]
[376741149,1754095845202,-460.0,0.00021974,2]
[376741151,1754095845211,-460.0,0.00021974,2]
[376741153,1754095845221,-460.0,0.00021975,2]
[376741155,1754095845232,-581.88,0.00021975,2]
[376741157,1754095845241,-462.66,0.00021975,2]
[376741159,1754095845252,-460.0,0.00021975,2]
[376741161,1754095845262,-460.0,0.00021975,2]
[376741163,1754095845271,-625.0,0.00021976,2]
[376741165,1754095845280,-784.46,0.00021976,2]
[376741167,1754095845289,-379.59,0.00021976,2]
[376741169,1754095845299,-486.63,0.00021976,2]
[376741171,1754095845308,-200.02723694,0.00021989,2]
[376741174,1754095845320,-500.0,0.00021989,2]
[376741176,1754095845329,-500.0,0.00021989,2]
[376741178,1754095845339,-500.0,0.00021989,2]
[376741180,1754095845350,-500.0,0.00021989,2]
[376741182,1754095845360,-500.0,0.00021989,2]
[376741184,1754095845369,-500.0,0.00021989,2]
[376741186,1754095845378,-500.0,0.00021989,2]
[376741188,1754095845388,-500.0,0.00021989,2]
[376741190,1754095845397,-500.0,0.00021989,2]
[376741192,1754095845406,-500.0,0.00021989,2]
[376741194,1754095845415,-500.0,0.00021989,2]
[376741196,1754095845425,-228.5358135,0.00021989,2]
[376741198,1754095845434,-599.49953264,0.0002199,2]
[376741200,1754095845443,-100000.0,0.0002199,2]
[376741203,1754095845454,-5700.91,0.00022,7]
[376741205,1754095845463,-181.0,0.00022,2]
[376741208,1754095845472,-358.48709909,0.00022019,2]
[376741213,1754095845481,-151.0,0.000221,7]
[376741215,1754095845491,-1273.87587132,0.00022107,6]
[376741217,1754095845500,-812.779,0.00022201,2]
[376741219,1754095845509,-178.88093196,0.00022201,2]
[376741221,1754095845520,-500.0,0.00022247,2]
[376741223,1754095845529,-2517.13,0.00022247,2]
[376741225,1754095845538,-710.96,0.00022247,2]
[376741227,1754095845547,-460.0,0.00022247,2]
[376741229,1754095845557,-1023.05,0.00022247,2]
[376741231,1754095845568,-460.0,0.00022247,2]
[376741233,1754095845577,-183.75,0.00022248,2]
[376741235,1754095845586,-628.37,0.00022248,2]
[376741237,1754095845595,-752.34,0.00022248,2]
[376741239,1754095845605,-632.24,0.00022248,2]
[376741241,1754095845614,-1619.55,0.00022248,2]
[376741243,1754095845623,-460.0,0.00022248,2]
[376741245,1754095845632,-460.0,0.00022248,2]
[376741247,1754095845641,-460.0,0.00022248,2]
[376741249,1754095845651,-460.0,0.00022249,2]
[376741251,1754095845660,-581.88,0.00022249,2]
[376741253,1754095845669,-462.66,0.00022249,2]
[376741255,1754095845679,-460.0,0.00022249,2]
[376741257,1754095845688,-460.0,0.00022249,2]
[376741259,1754095845698,-625.0,0.0002225,2]
[376741261,1754095845707,-784.46,0.0002225,2]
[376741263,1754095845716,-486.63,0.0002225,2]
[376741265,1754095845725,-151.0,0.000223,8]
[376741267,1754095845739,-1273.87587132,0.00022383,7]
[376741269,1754095845748,-215.03686253,0.0002252,3]
[376741271,1754095845758,-460.76838597,0.0002252,3]
[376741273,1754095845768,-312.16666667,0.0002252,3]
[376741275,1754095845779,-160.0,0.0002252,3]
[376741277,1754095845789,-200.0,0.00022521,2]
[376741279,1754095845798,-1000.0,0.00022521,2]
[376741281,1754095845807,-1000.0,0.00022521,2]
[376741283,1754095845819,-233.16621669,0.00022521,2]
[376741285,1754095845829,-1000.0,0.00022521,2]
[376741287,1754095845837,-504.16364285,0.00022521,2]
[376741289,1754095845847,-1000.0,0.00022521,2]
[376741291,1754095845856,-500.0,0.00022521,2]
[376741293,1754095845865,-2517.13,0.00022521,2]
[376741295,1754095845874,-710.96,0.00022521,2]
[376741297,1754095845883,-460.0,0.00022521,2]
[376741299,1754095845893,-1023.05,0.00022521,2]
[376741301,1754095845902,-460.0,0.00022521,2]
[376741302,1754095845911,-628.37,0.00022522,2]
[376741305,1754095845922,-752.34,0.00022522,2]
[376741307,1754095845931,-632.24,0.00022522,2]
[376741309,1754095845941,-1619.55,0.00022522,2]
[376741311,1754095845950,-460.0,0.00022522,2]
[376741313,1754095845959,-460.0,0.00022522,2]
[376741315,1754095845969,-460.0,0.00022522,2]
[376741317,1754095845978,-460.0,0.00022523,2]
[376741319,1754095845988,-581.88,0.00022523,2]
[376741321,1754095845998,-462.66,0.00022523,2]
[376741323,1754095846008,-460.0,0.00022523,2]
[376741324,1754095846017,-460.0,0.00022523,2]
[376741326,1754095846026,-625.0,0.00022524,2]
[376741328,1754095846036,-784.46,0.00022524,2]
[376741330,1754095846045,-486.63,0.00022524,2]
[376741332,1754095846054,-255.47129339,0.00022652,2]
[376741334,1754095846063,-1273.87587132,0.00022659,7]
[376741336,1754095846073,-500.0,0.00022795,2]
[376741338,1754095846082,-700.0,0.00022795,2]
[376741340,1754095846091,-2517.13,0.00022795,2]
[376741342,1754095846100,-710.96,0.00022795,2]
[376741344,1754095846110,-460.0,0.00022795,2]
[376741346,1754095846120,-1023.05,0.00022795,2]
[376741348,1754095846131,-464.67539747,0.00022795,2]
[376741350,1754095846140,-628.37,0.00022796,2]
[376741352,1754095846149,-752.34,0.00022796,2]
[376741354,1754095846159,-632.24,0.00022796,2]
[376741368,1754095846269,-1619.55,0.00022796,2]
[376741370,1754095846279,-460.0,0.00022796,2]
[376741372,1754095846288,-460.0,0.00022796,2]
[376741374,1754095846297,-460.0,0.00022796,2]
[376741376,1754095846306,-460.0,0.00022797,2]
[376741378,1754095846316,-581.88,0.00022797,2]
[376741379,1754095846326,-462.66,0.00022797,2]
[376741381,1754095846335,-460.0,0.00022797,2]
[376741383,1754095846344,-625.0,0.00022798,2]
[376741385,1754095846354,-784.46,0.00022798,2]
[376741387,1754095846364,-486.63,0.00022798,2]
[376741389,1754095846373,-151.0,0.000228,9]
[376741391,1754095846383,-151.0,0.000228,9]
[376741393,1754095846393,-867.70903189,0.00022807,2]
[376741395,1754095846402,-587.0,0.0002284,2]
[376741397,1754095846412,-1273.87587132,0.00022934,8]
[376741399,1754095846422,-210.99,0.00022943,2]
[376741401,1754095846431,-157.0,0.00023,3]
[376741403,1754095846441,-157.0,0.00023,3]
[376741405,1754095846450,-157.0,0.00023,3]
[376741407,1754095846459,-160.0,0.00023,2]
[376741409,1754095846468,-841.53699354,0.00023,3]
[376741411,1754095846477,-160.0,0.00023,3]
[376741413,1754095846486,-231.52694941,0.00023,3]
[376741415,1754095846495,-160.0,0.00023,3]
[376741417,1754095846504,-216.22890603,0.00023,3]
[376741419,1754095846513,-1003.65022164,0.00023068,2]
[376741420,1754095846522,-517.79606695,0.00023068,2]
[376741422,1754095846531,-500.0,0.00023068,2]
[376741424,1754095846540,-500.0,0.00023069,2]
[376741426,1754095846549,-2517.13,0.00023069,2]
[376741428,1754095846558,-710.96,0.00023069,2]
[376741430,1754095846569,-460.0,0.00023069,2]
[376741432,1754095846579,-1023.05,0.00023069,2]
[376741434,1754095846588,-628.37,0.0002307,2]
[376741436,1754095846597,-752.34,0.0002307,2]
[376741438,1754095846606,-632.24,0.0002307,2]
[376741440,1754095846616,-1619.55,0.0002307,2]
[376741442,1754095846625,-460.0,0.0002307,2]
[376741444,1754095846635,-460.0,0.0002307,2]
[376741446,1754095846645,-460.0,0.0002307,2]
[376741448,1754095846655,-460.0,0.00023071,2]
[376741449,1754095846664,-581.88,0.00023071,2]
[376741451,1754095846674,-462.66,0.00023071,2]
[376741453,1754095846683,-460.0,0.00023071,2]
[376741455,1754095846692,-625.0,0.00023072,2]
[376741457,1754095846702,-784.46,0.00023072,2]
[376741459,1754095846711,-486.63,0.00023072,2]
[376741461,1754095846721,-155.0,0.00023082,2]
[376741463,1754095846731,-654.61,0.000231,7]
[376741465,1754095846745,-151.503774,0.00023116,6]
[376741467,1754095846755,-1838.0,0.0002312,5]
[376741469,1754095846765,-151.0,0.000232,7]
[376741471,1754095846775,-1273.87587132,0.0002321,8]
[376741473,1754095846785,-502.25881387,0.00023343,2]
[376741475,1754095846795,-2517.13,0.00023343,2]
[376741477,1754095846804,-710.96,0.00023343,2]
[376741479,1754095846816,-513.90672193,0.00023343,2]
[376741481,1754095846826,-1023.05,0.00023343,2]
[376741483,1754095846835,-628.37,0.00023344,2]
[376741485,1754095846844,-752.34,0.00023344,2]
[376741487,1754095846854,-632.24,0.00023344,2]
[376741489,1754095846864,-1619.55,0.00023344,2]
[376741491,1754095846874,-460.0,0.00023344,2]
[376741493,1754095846883,-329.01,0.00023344,2]
[376741495,1754095846893,-460.0,0.00023344,2]
[376741497,1754095846903,-460.0,0.00023345,2]
[376741499,1754095846912,-581.88,0.00023345,2]
[376741501,1754095846921,-462.66,0.00023345,2]
[376741503,1754095846931,-625.0,0.00023346,2]
[376741505,1754095846940,-784.46,0.00023346,2]
[376741507,1754095846949,-486.63,0.00023346,2]
[376741509,1754095846958,-5700.91,0.000234,7]
[376741511,1754095846967,-151.0,0.000234,7]
[376741512,1754095846976,-151.0,0.000234,7]
[376741514,1754095846986,-151.0,0.000234,7]
[376741516,1754095846995,-151.0,0.000234,7]
[376741518,1754095847004,-215.03686253,0.000234,7]
[376741520,1754095847013,-151.0,0.000234,7]
[376741522,1754095847022,-460.76838597,0.000234,7]
[376741524,1754095847030,-312.16666667,0.000234,7]
[376741526,1754095847040,-160.0,0.000234,7]
[376741528,1754095847049,-151.0,0.000234,7]
[376741530,1754095847059,-151.503774,0.00023421,6]
[376741532,1754095847072,-1273.87587132,0.00023486,9]
[376741534,1754095847082,-1838.0,0.00023489,5]
[376741536,1754095847091,-151.0,0.000235,10]
[376741538,1754095847100,-151.0,0.000235,7]
[376741540,1754095847109,-2517.13,0.00023617,2]
[376741542,1754095847119,-710.96,0.00023617,2]
[376741544,1754095847128,-1023.05,0.00023617,2]
[376741545,1754095847137,-628.37,0.00023618,2]
[376741547,1754095847148,-752.34,0.00023618,2]
[376741549,1754095847157,-632.24,0.00023618,2]
[376741552,1754095847176,-1619.55,0.00023618,2]
[376741554,1754095847188,-460.0,0.00023618,2]
[376741556,1754095847199,-460.0,0.00023618,2]
[376741558,1754095847210,-460.0,0.00023619,2]
[376741561,1754095847221,-581.88,0.00023619,2]
[376741562,1754095847232,-462.66,0.00023619,2]
[376741565,1754095847244,-625.0,0.0002362,2]
[376741566,1754095847255,-784.46,0.0002362,2]
[376741568,1754095847266,-486.63,0.0002362,2]
[376741570,1754095847277,-200.0,0.00023653,15]
[376741573,1754095847290,-200.0,0.00023653,15]
[376741574,1754095847311,-200.0,0.00023653,15]
[376741576,1754095847326,-200.0,0.00023653,15]
[376741578,1754095847336,-200.0,0.00023653,15]
[376741580,1754095847347,-200.0,0.00023653,15]
[376741582,1754095847356,-366.0,0.00023653,15]
[376741584,1754095847366,-151.0,0.000237,5]
[376741586,1754095847376,-255.47129339,0.00023734,2]
[376741589,1754095847386,-1273.87587132,0.00023762,9]
[376741591,1754095847396,-867.70903189,0.00023821,2]
[376741593,1754095847408,-2146.0,0.00023833,2]
[376741594,1754095847430,-970.0,0.00023833,2]
[376741597,1754095847449,-635.0,0.00023833,2]
[376741598,1754095847460,-150.0,0.00023833,2]
[376741600,1754095847470,-1838.0,0.00023858,5]
[376741602,1754095847481,-700.0,0.00023891,2]
[376741604,1754095847490,-2517.13,0.00023891,2]
[376741606,1754095847501,-710.96,0.00023891,2]
[376741608,1754095847510,-1023.05,0.00023891,2]
[376741610,1754095847519,-628.37,0.00023892,2]
[376741612,1754095847529,-752.34,0.00023892,2]
[376741614,1754095847539,-632.24,0.00023892,2]
[376741616,1754095847548,-1619.55,0.00023892,2]
[376741618,1754095847558,-460.0,0.00023892,2]
[376741620,1754095847570,-295.57462832,0.00023892,2]
[376741622,1754095847580,-384.00705112,0.00023893,2]
[376741624,1754095847590,-581.88,0.00023893,2]
[376741626,1754095847599,-462.66,0.00023893,2]
[376741628,1754095847608,-625.0,0.00023894,2]
[376741630,1754095847617,-784.46,0.00023894,2]
[376741632,1754095847626,-486.63,0.00023894,2]
[376741634,1754095847636,-210.99,0.00023917,2]
[376741636,1754095847645,-250.0,0.00023985,2]
[376741638,1754095847655,-157.0,0.00024,5]
[376741640,1754095847664,-157.0,0.00024,5]
[376741642,1754095847674,-157.0,0.00024,4]
[376741644,1754095847684,-157.0,0.00024,4]
[376741646,1754095847694,-157.0,0.00024,3]
[376741647,1754095847703,-1023.44170652,0.00024,7]
[376741649,1754095847713,-1488.16,0.00024,7]
[376741651,1754095847722,-841.53699354,0.00024,7]
[376741653,1754095847732,-151.0,0.00024,9]
[376741655,1754095847745,-460.04,0.00024,2]
[376741657,1754095847755,-223.80859837,0.00024026,2]
[376741659,1754095847764,-1273.87587132,0.00024038,10]
[376741661,1754095847774,-151.0,0.000241,6]
[376741663,1754095847785,-2517.13,0.00024165,2]
[376741665,1754095847796,-710.96,0.00024165,2]
[376741667,1754095847806,-1023.05,0.00024165,2]
[376741669,1754095847817,-628.37,0.00024166,2]
[376741671,1754095847827,-752.34,0.00024166,2]
[376741673,1754095847837,-632.24,0.00024166,2]
[376741675,1754095847846,-1619.55,0.00024166,2]
[376741677,1754095847855,-460.0,0.00024166,2]